bitfinex/quotes_SOLUSD_20250706
["timestamp","ask_amount","ask_price","bid_price","bid_amount"]
[1751832582731,32.58082294,151.96,151.87,6.58457891]
[1751832583824,152.96,151.99,151.88,18.64964886]
[1751832584034,7.41266984,151.98,151.89,1.6046]
[1751832584331,26.0,151.95,151.89,1.6046]
[1751832584836,26.0,151.96,151.9,6.58327847]
[1751832585939,26.0,151.95,151.9,6.58327847]
[1751832586527,26.0,151.96,151.9,6.58327847]
[1751832587928,26.0,151.96,151.9,23.04147465]
[1751832589632,26.0,151.95,151.9,23.04147465]
[1751832600243,26.0,151.95,151.92,6.58241179]
[1751832601456,26.0,151.95,151.92,7.2851564]
[1751832602573,153.2851564,151.97,151.93,7.2851564]
[1751832602734,14.66854905,151.96,151.92,7.2851564]
[1751832602929,146.0,151.97,151.94,7.2851564]
[1751832603535,146.0,151.97,151.95,6.5811122]
[1751832604548,146.0,151.97,151.94,7.2851564]
[1751832606874,146.0,151.97,151.95,6.5811122]
[1751832609956,7.2851564,151.96,151.9,23.04147465]
[1751832610268,14.66926474,151.95,151.91,7.2851564]
[1751832610462,7.2851564,151.95,151.91,7.2851564]
[1751832610842,7.38487533,151.94,151.9,6.58327847]
[1751832611047,7.2851564,151.93,151.9,6.58327847]
[1751832612663,7.2851564,151.92,151.88,6.58414537]
[1751832612869,7.2851564,151.92,151.88,13.86930177]
[1751832614050,7.2851564,151.9,151.86,6.58501251]
[1751832614262,7.2851564,151.92,151.86,6.58501251]
[1751832614457,7.2851564,151.88,151.86,6.58501251]
[1751832614650,7.38558126,151.9,151.85,6.58544616]
[1751832614854,7.2851564,151.89,151.85,6.58544616]
[1751832616672,7.38260909,151.9,151.85,6.58544616]
[1751832616861,7.2851564,151.89,151.85,6.58544616]
[1751832618252,7.2851564,151.89,151.85,13.87060256]
[1751832618453,7.2851564,151.88,151.85,6.58544616]
[1751832619771,146.0,151.89,151.83,6.58631364]
[1751832619772,7.2851564,151.86,151.83,6.58631364]
[1751832620583,7.2851564,151.85,151.82,6.58659879]
[1751832620969,7.2851564,151.86,151.82,13.87175519]
[1751832623383,7.2851564,151.85,151.82,6.58659879]
[1751832624080,146.0,151.86,151.82,6.58659879]
[1751832624586,7.2851564,151.85,151.82,6.58659879]
[1751832625592,7.2851564,151.85,151.81,7.3451564]
[1751832626680,7.2851564,151.84,151.81,0.06]
[1751832626890,7.2851564,151.83,151.81,0.06]
[1751832632967,153.2851564,151.82,151.81,0.06]
[1751832638700,146.0,151.82,151.81,0.06]
[1751832638899,153.2851564,151.82,151.81,0.06]
[1751832640293,146.0,151.82,151.81,0.06]
[1751832640597,153.2851564,151.82,151.81,0.06]
[1751832642095,146.0,151.82,151.81,0.06]
[1751832642296,8.23496481,151.88,151.81,0.06]
[1751832642297,146.0,151.86,151.81,7.3451564]
[1751832642502,146.0,151.86,151.84,7.2851564]
[1751832642889,146.0,151.86,151.81,0.06]
[1751832643089,146.0,151.86,151.85,6.58544616]
[1751832656294,146.0,151.86,151.84,6.58587987]
[1751832658717,146.0,151.86,151.85,0.06]
[1751832669617,153.2851564,151.86,151.85,0.06]
[1751832670918,158.05797636,151.86,151.85,0.06]
[1751832671234,12.05797636,151.86,151.85,0.06]
[1751832673014,14.68441411,151.86,151.85,0.06]
[1751832675812,14.68661271,151.86,151.85,0.06]
[1751832676428,7.39092411,151.86,151.85,0.06]
[1751832676728,32.0484,151.9,151.85,0.06]
[1751832676926,7.2956886,151.87,151.85,0.06]
[1751832678312,7.2956886,151.88,151.85,0.06]
[1751832678512,7.39186487,151.87,151.85,0.06]
[1751832678817,7.2956886,151.88,151.85,0.06]
[1751832679032,7.39186487,151.87,151.85,0.06]
[1751832679207,7.2956886,151.88,151.85,0.06]
[1751832679408,7.39287656,151.87,151.85,0.06]
[1751832679628,7.2956886,151.88,151.85,0.06]
[1751832679821,7.39287656,151.87,151.85,0.06]
[1751832680020,7.2956886,151.88,151.85,0.06]
[1751832680226,7.39287896,151.87,151.85,0.06]
[1751832680426,7.2956886,151.88,151.85,0.06]
[1751832680627,7.39403421,151.87,151.85,0.06]
[1751832680819,7.2956886,151.88,151.85,0.06]
[1751832681020,7.39403421,151.87,151.85,0.06]
[1751832681221,7.2956886,151.88,151.85,0.06]
[1751832681422,7.39536639,151.87,151.85,0.06]
[1751832681621,7.2956886,151.88,151.85,0.06]
[1751832681825,14.69105499,151.87,151.85,0.06]
[1751832682029,7.2956886,151.87,151.85,0.06]
[1751832685208,7.40361038,151.86,151.85,0.06]
[1751832685623,14.69929898,151.86,151.85,0.06]
[1751832686332,7.4053859,151.88,151.86,44.64964886]
[1751832686515,0.03,151.91,151.88,18.64964886]
[1751832686715,0.03,151.91,151.9,7.2956886]
[1751832688537,0.03,151.91,151.9,13.87896707]
[1751832689253,0.03,151.91,151.9,6.58327847]
[1751832689533,0.03,151.91,151.9,13.87896707]
[1751832692115,0.03,151.91,151.9,14.37896707]
[1751832693515,0.060969,151.98,151.94,46.23164886]
[1751832693746,9.23865513,152.12,151.98,64.64954886]
[1751832694052,7.2956886,152.16,152.11,7.2956886]
[1751832694544,7.5853,152.19,152.11,7.2956886]
[1751832694863,7.2956886,152.15,152.1,7.2956886]
[1751832695215,26.0,152.16,152.1,7.2956886]
[1751832695431,7.2956886,152.15,152.11,6.57418973]
[1751832695921,7.2956886,152.18,152.1,9.88868365]
[1751832696230,7.841,152.22,152.1,13.8702676]
[1751832696231,7.2956886,152.14,152.1,13.8702676]
[1751832696746,7.2956886,152.14,152.08,32.221]
[1751832696747,7.2956886,152.11,152.05,9.94652655]
[1751832696954,7.2956886,152.1,152.06,7.2956886]
[1751832697322,7.2956886,152.16,152.04,39.87288678]
[1751832697323,7.2956886,152.09,152.04,39.87288678]
[1751832697634,7.2956886,152.08,152.04,32.57719818]
[1751832697821,7.2956886,152.08,152.04,6.57719818]
[1751832699020,6.57423323,152.11,152.04,6.57719818]
[1751832699219,7.2956886,152.08,152.04,13.87288678]
[1751832700852,7.2956886,152.08,152.03,13.87327092]
[1751832701166,7.2956886,152.07,152.03,13.87327092]
[1751832701916,7.2956886,152.06,152.02,13.87370747]
[1751832702323,32.57418973,152.11,152.02,13.87370747]
[1751832702524,146.0,152.1,152.02,13.87370747]
[1751832702742,7.2956886,152.07,152.02,13.87370747]
[1751832703442,7.2956886,152.06,152.02,7.2956886]
[1751832703640,7.2956886,152.05,152.01,20.75410917]
[1751832704742,7.2956886,152.04,152.0,6.57894736]
[1751832704930,7.2956886,152.04,152.0,13.87463596]
[1751832705541,7.2956886,152.05,152.0,13.87463596]
[1751832708040,7.2956886,152.04,152.0,6.57894736]
[1751832708246,7.2956886,152.03,152.0,6.57894736]
[1751832708752,7.2956886,152.03,151.99,13.8749848]
[1751832710122,6.57649973,152.06,151.99,13.8749848]
[1751832710328,7.2956886,152.04,152.0,7.2956886]
[1751832711759,6.57649973,152.06,152.0,13.87423951]
[1751832711942,7.2956886,152.04,152.0,13.87423951]
[1751832714031,146.0,152.05,152.0,13.87423951]
[1751832714445,153.2956886,152.05,152.0,13.87423951]
[1751832714646,153.2956886,152.05,152.0,6.57855091]
[1751832714934,153.2956886,152.05,152.01,0.5]
[1751832716061,153.2956886,152.05,152.0,6.57855091]
[1751832717268,153.2956886,152.05,151.99,6.57938022]
[1751832717442,153.2956886,152.05,151.99,13.87506882]
[1751832718163,146.0,152.05,151.99,13.87506882]
[1751832718363,153.2956886,152.05,152.0,7.2956886]
[1751832718570,7.2956886,152.04,152.0,7.2956886]
[1751832720150,7.2956886,152.04,152.01,7.07811556]
[1751832720949,7.2956886,152.04,152.01,6.57811556]
[1751832723354,146.0,152.05,151.99,6.57938022]
[1751832723559,7.2956886,152.02,151.99,6.57938022]
[1751832723868,7.2956886,152.01,151.99,6.57938022]
[1751832724072,152.57684,152.05,151.99,6.57938022]
[1751832724255,7.2956886,152.01,151.99,6.57938022]
[1751832724651,7.2956886,152.02,151.99,6.57938022]
[1751832727761,7.2956886,152.02,151.97,8.1631]
[1751832728066,7.2956886,152.01,151.97,8.9547886]
[1751832728563,7.2956886,152.01,151.97,1.6591]
[1751832728749,7.2956886,152.0,151.97,1.6591]
[1751832729160,7.2956886,152.0,151.97,8.23918612]
[1751832730150,7.2956886,152.0,151.97,6.58008612]
[1751832733159,6.57778569,152.03,151.97,6.58008612]
[1751832733160,7.2956886,151.99,151.97,6.58008612]
[1751832733366,7.2956886,152.0,151.97,6.58008612]
[1751832734252,7.2956886,152.0,151.96,6.58067912]
[1751832738767,7.2956886,152.0,151.96,13.87636772]
[1751832739578,7.2956886,152.0,151.96,6.58067912]
[1751832740573,7.2956886,151.99,151.95,6.58094616]
[1751832740779,7.2956886,151.98,151.95,6.58094616]
[1751832743375,7.2956886,151.97,151.94,9.92275531]
[1751832743575,7.2956886,151.98,151.94,17.21844391]
[1751832743784,146.0,152.01,151.94,17.21844391]
[1751832743978,7.2956886,151.99,151.95,7.2956886]
[1751832744282,146.0,152.01,151.95,7.2956886]
[1751832744283,7.2956886,152.0,151.95,7.2956886]
[1751832745070,146.0,151.99,151.96,6.58067912]
[1751832747285,146.0,151.99,151.95,6.5811122]
[1751832747466,146.0,151.99,151.95,13.8768008]
[1751832747970,146.0,151.99,151.96,0.5]
[1751832748288,146.0,151.99,151.95,13.8768008]
[1751832748861,146.0,151.99,151.96,0.06]
[1751832755289,146.0,151.99,151.97,7.2956886]
[1751832755498,146.0,151.99,151.98,7.2956886]
[1751832755996,146.0,151.99,151.97,7.2956886]
[1751832756588,146.0,151.99,151.97,13.87554762]
[1751832756984,146.0,151.99,151.97,6.57985902]
[1751832757689,146.0,151.99,151.98,7.2956886]
[1751832758987,146.0,152.03,151.98,7.2956886]
[1751832759388,146.0,152.03,151.99,7.2956886]
[1751832760201,146.0,152.03,152.0,6.57894736]
[1751832761087,153.2956886,152.03,152.0,6.57894736]
[1751832761775,146.0,152.03,152.0,6.57894736]
[1751832761980,153.2956886,152.03,152.0,6.57894736]
[1751832762991,146.0,152.03,152.0,6.57894736]
[1751832763191,153.2956886,152.03,152.0,6.57894736]
[1751832764425,146.0,152.03,152.0,6.57894736]
[1751832767419,146.0,152.03,151.97,23.03086135]
[1751832767583,153.2956886,152.03,151.99,7.2956886]
[1751832767788,153.2956886,152.03,152.0,0.5]
[1751832767989,153.2956886,152.03,151.99,7.2956886]
[1751832770214,153.2956886,152.03,152.0,6.57894736]
[1751832770707,146.0,152.03,152.0,6.57894736]
[1751832771100,146.0,152.03,152.0,13.87463596]
[1751832773794,146.0,152.03,152.01,7.2956886]
[1751832773995,0.03,152.06,152.02,7.2956886]
[1751832774308,0.03,152.06,152.03,7.2956886]
[1751832775307,0.03,152.06,152.03,13.8729649]
[1751832776815,0.03,152.06,152.03,7.2956886]
[1751832779126,0.03,152.06,152.03,13.87305214]
[1751832781630,7.3256886,152.06,152.03,6.57736354]
[1751832781929,0.03,152.06,152.04,7.2956886]
[1751832782229,0.03,152.06,152.04,7.7956886]
[1751832782817,0.03,152.06,152.04,0.5]
[1751832783127,7.3256886,152.06,152.04,0.5]
[1751832783325,7.3256886,152.06,152.03,6.57736354]
[1751832783909,7.3256886,152.06,152.02,7.2956886]
[1751832785402,7.3256886,152.06,152.03,6.57764914]
[1751832787419,0.03,152.06,152.03,6.57764914]
[1751832787622,0.03,152.06,152.03,14.37333774]
[1751832790430,7.3256886,152.06,152.03,7.07764914]
[1751832790616,7.2956886,152.05,152.03,7.07764914]
[1751832791020,7.3256886,152.06,152.03,7.07764914]
[1751832794547,7.3256886,152.06,152.03,7.13764914]
[1751832795150,7.3256886,152.06,152.03,6.63764914]
[1751832798024,0.03,152.06,152.03,6.63764914]
[1751832798228,7.3256886,152.06,152.03,6.63764914]
[1751832798765,0.03,152.06,152.03,6.63764914]
[1751832798950,7.3256886,152.06,152.03,6.63764914]
[1751832801043,4.68590144,152.06,152.03,0.06]
[1751832802349,0.03,152.06,152.03,6.63764914]
[1751832802647,4.68590144,152.06,152.03,6.63764914]
[1751832805056,4.65590144,152.04,152.03,0.06]
[1751832812555,0.03,152.06,152.03,0.06]
[1751832812747,4.65590144,152.05,152.03,0.06]
[1751832815348,12.05016347,152.05,152.03,0.06]
[1751832816039,4.65590144,152.04,152.03,0.06]
[1751832816462,7.39426203,152.05,152.03,0.06]
[1751832816636,12.05016347,152.05,152.03,0.06]
[1751832817139,12.05016347,152.05,152.0,4.65590144]
[1751832819163,12.05016347,152.05,152.01,6.57851457]
[1751832822171,4.65590144,152.04,152.01,6.57851457]
[1751832823056,4.65590144,152.04,152.0,11.2348488]
[1751832824575,4.65590144,152.04,152.0,6.57894736]
[1751832827071,4.65590144,152.04,152.0,4.65590144]
[1751832827971,150.65590144,152.04,152.0,4.65590144]
[1751832828457,150.65590144,152.04,152.01,6.57851457]
[1751832830102,4.65590144,152.03,151.99,21.10435007]
[1751832833298,4.65590144,152.03,151.99,27.68373029]
[1751832834401,146.0,152.04,151.99,27.68373029]
[1751832834694,4.65590144,152.03,151.99,6.57938022]
[1751832834890,4.65590144,152.03,151.99,11.23528166]
[1751832839714,4.65590144,152.03,151.99,11.29528166]
[1751832843215,146.0,152.04,151.99,11.29528166]
[1751832843417,4.65590144,152.03,151.99,11.29528166]
[1751832845024,146.0,152.04,151.99,11.29528166]
[1751832845317,4.65590144,152.03,151.99,11.29528166]
[1751832845914,3.65590144,152.03,151.99,0.06]
[1751832846096,3.65590144,152.03,151.99,4.71590144]
[1751832846442,146.0,152.04,152.02,4.65590144]
[1751832848319,146.0,152.04,152.03,6.57764914]
[1751832849019,0.03,152.05,152.03,37.23355058]
[1751832849308,0.03,152.06,152.04,23.3055503]
[1751832849522,0.03,152.06,152.05,4.65590144]
[1751832850624,0.03,152.06,152.05,11.23268539]
[1751832852730,4.65590144,152.11,152.05,27.67464527]
[1751832852912,4.65590144,152.11,152.06,4.65590144]
[1751832853937,4.65590144,152.11,152.07,6.57591898]
[1751832856630,4.65590144,152.08,152.05,6.57678395]
[1751832857437,4.65590144,152.09,152.05,11.23268539]
[1751832857637,4.65590144,152.09,152.05,16.44195988]
[1751832858743,4.65590144,152.08,152.05,16.44195988]
[1751832859642,4.65590144,152.09,152.05,16.44195988]
[1751832859940,4.65590144,152.09,152.05,27.67464527]
[1751832860613,4.65590144,152.09,152.05,23.01874383]
[1751832862231,4.65590144,152.09,152.05,27.67464527]
[1751832863056,4.68590144,152.09,152.05,27.67464527]
[1751832874068,0.03,152.09,152.05,27.67464527]
[1751832875262,0.03,152.09,152.06,4.65590144]
[1751832877370,0.03,152.09,152.07,6.57591898]
[1751832878754,0.03,152.09,152.07,11.23182042]
[1751832879152,0.03,152.09,152.07,6.57591898]
[1751832879358,0.03,152.09,152.08,11.23138802]
[1751832880367,0.03,152.09,152.08,6.57548658]
[1751832881572,0.03,152.09,152.08,11.23138802]
[1751832891366,0.03,152.09,152.08,6.57548658]
[1751832891570,0.03,152.09,152.06,6.57635144]
[1751832891571,4.68590144,152.09,152.06,6.57635144]
[1751832891759,4.65590144,152.08,152.06,6.57635144]
[1751832892087,4.68590144,152.09,152.06,6.57635144]
[1751832892286,0.03,152.09,152.05,6.63678395]
[1751832892493,4.68590144,152.09,152.05,6.63678395]
[1751832892856,4.68590144,152.09,152.05,11.29268539]
[1751832893364,4.68590144,152.09,152.05,6.63678395]
[1751832893567,4.65590144,152.06,152.05,0.06]
[1751832894663,4.65590144,152.07,152.05,0.06]
[1751832896186,146.0,152.08,152.05,0.06]
[1751832896387,4.65590144,152.07,152.05,0.06]
[1751832898588,4.65590144,152.06,152.05,0.06]
[1751832901987,7.38441281,152.07,152.05,0.06]
[1751832902186,4.65590144,152.06,152.05,0.06]
[1751832902980,12.03843119,152.06,152.05,0.06]
[1751832904180,18.61478263,152.06,152.05,0.06]
[1751832904595,13.95888119,152.06,152.05,0.06]
[1751832904777,18.61478263,152.06,152.05,0.06]
[1751832908319,11.23225288,152.06,152.05,0.06]
[1751832911437,6.57635144,152.06,152.05,0.06]
[1751832911642,11.23225288,152.06,152.05,0.06]
[1751832918137,26.0,152.06,152.05,0.06]
[1751832918344,0.03,152.09,152.05,0.06]
[1751832918646,4.65590144,152.08,152.05,0.06]
[1751832919033,4.65590144,152.06,152.05,0.06]
[1751832922034,11.23225288,152.06,152.05,0.06]
[1751832931152,4.65590144,152.06,152.05,0.06]
[1751832932035,11.23225288,152.06,152.05,0.06]
[1751832935260,4.65590144,152.06,152.05,0.06]
[1751832935569,0.03,152.09,152.05,0.06]
[1751832935570,26.0,152.08,152.05,0.06]
[1751832935866,4.65590144,152.07,152.05,0.06]
[1751832936760,4.65590144,152.06,152.05,0.06]
[1751832941359,25.2547031,152.09,152.05,0.06]
[1751832941571,4.65590144,152.06,152.05,0.06]
[1751832941946,12.04800553,152.06,152.05,0.06]
[1751832947664,18.62435697,152.06,152.05,0.06]
[1751832951082,12.04800553,152.06,152.05,0.06]
[1751832953577,18.62435697,152.06,152.05,0.06]
[1751832954581,37.27400583,152.06,152.05,0.06]
[1751832959083,37.27332803,152.06,152.05,0.06]
[1751832978581,37.27003907,152.06,152.05,0.06]
[1751832982202,33.38813733,152.06,152.05,0.06]
[1751832982408,71.40403877,152.06,152.05,0.06]
[1751832982620,38.04403877,152.06,152.05,0.06]
[1751832985710,38.05071465,152.06,152.05,0.06]
[1751832993116,63.27671495,152.06,152.05,0.06]
[1751832993497,72.52023146,152.06,152.05,0.06]
[1751832996317,46.52023146,152.06,152.05,0.06]
[1751832998120,26.0,152.03,151.99,0.06]
[1751832998324,4.65590144,152.0,151.99,0.06]
[1751832999323,12.05605247,152.0,151.99,0.06]
[1751833000210,18.63499983,152.0,151.99,0.06]
[1751833000517,37.25860559,152.0,151.99,0.06]
[1751833001118,29.85845456,152.0,151.99,0.06]
[1751833001322,37.25707247,152.0,151.99,0.06]
[1751833002033,18.63346671,152.0,151.99,0.06]
[1751833004928,81.90672133,152.0,151.99,0.06]
[1751833005112,55.90672133,152.0,151.99,0.06]
[1751833005615,55.90672133,152.0,151.96,0.06]
[1751833005616,49.3055503,151.97,151.96,0.06]
[1751833005935,56.70416821,151.97,151.96,0.06]
[1751833007026,63.28441431,151.97,151.96,0.06]
[1751833007703,55.8857964,151.97,151.96,0.06]
[1751833009416,9.24827239,152.02,151.96,0.06]
[1751833009729,4.65590144,151.97,151.96,0.06]
[1751833010106,26.0,151.98,151.96,0.06]
[1751833010332,30.65590144,151.98,151.96,0.06]
[1751833012541,6.84,152.01,151.96,4.71590144]
[1751833012708,4.65590144,152.0,151.96,0.06]
[1751833012913,4.65590144,151.98,151.96,0.06]
[1751833013129,4.65590144,151.99,151.96,0.06]
[1751833014845,146.0,152.0,151.96,0.06]
[1751833015022,4.65590144,151.98,151.96,0.06]
[1751833017338,4.65590144,151.99,151.96,6.64067912]
[1751833017543,146.03,152.0,151.96,6.64067912]
[1751833017741,150.68590144,152.0,151.96,11.29658056]
[1751833019625,150.68590144,152.0,151.96,0.06]
[1751833020565,150.68590144,152.0,151.96,11.13230144]
[1751833023248,146.0,151.99,151.97,6.5802461]
[1751833024875,150.65590144,151.99,151.97,6.5802461]
[1751833026473,146.0,151.99,151.97,6.5802461]
[1751833026661,150.65590144,151.99,151.97,6.5802461]
[1751833028362,150.65590144,151.99,151.96,6.64059658]
[1751833029680,4.65590144,151.98,151.96,0.06]
[1751833031455,4.65590144,151.97,151.96,0.06]
[1751833031652,30.65590144,151.97,151.96,0.06]
[1751833032464,38.03102936,151.97,151.96,0.06]
[1751833033337,44.61127546,151.97,151.96,0.06]
[1751833036279,64.92382432,151.97,151.96,1e-08]
[1751833037347,105.10382432,151.97,151.96,1e-08]
[1751833038667,64.92382432,151.97,151.96,1e-08]
[1751833038967,105.10382432,151.97,151.96,1e-08]
[1751833040267,145.99999999,151.94,151.89,6.78353902]
[1751833040577,4.65590144,151.92,151.89,6.78353902]
[1751833042386,145.99999999,151.93,151.89,6.78353902]
[1751833042573,150.65590143,151.93,151.89,6.78353902]
[1751833043072,4.65590144,151.92,151.89,6.78353902]
[1751833046790,150.65590143,151.93,151.89,11.43944046]
[1751833047173,145.99999999,151.93,151.9,4.65590144]
[1751833047362,145.99999999,151.93,151.91,4.65590144]
[1751833047693,145.99999999,151.93,151.92,4.65590144]
[1751833049177,145.99999999,151.93,151.92,11.23831323]
[1751833049684,145.99999999,151.93,151.92,6.58241179]
[1751833051991,145.99999999,151.93,151.91,11.23874654]
[1751833052185,145.99999999,151.93,151.91,6.5828451]
[1751833052382,145.99999999,151.93,151.91,11.23874654]
[1751833059901,145.99999999,151.93,151.91,11.29874654]
[1751833074407,145.99999999,151.93,151.91,6.6428451]
[1751833074612,145.99999999,151.93,151.91,11.29874654]
[1751833075597,145.99999999,151.93,151.91,6.6428451]
[1751833075784,145.99999999,151.93,151.91,11.29874654]
[1751833077216,145.99999999,151.93,151.92,4.65590144]
[1751833079314,145.99999999,151.93,151.92,11.23831323]
[1751833080617,145.99999999,151.93,151.92,4.65590144]
[1751833081708,145.99999999,151.93,151.92,11.23831323]
[1751833083021,145.99999999,151.93,151.92,4.65590144]
[1751833084324,145.99999999,151.93,151.91,6.6428451]
[1751833084505,0.03,151.96,151.92,27.69434271]
[1751833084817,0.03,151.96,151.94,4.65590144]
[1751833085024,0.03,151.96,151.93,4.65590144]
[1751833085413,0.03,151.96,151.92,23.03844127]
[1751833085605,4.65590144,151.94,151.92,6.58241179]
[1751833086322,4.65590144,151.93,151.91,6.64267351]
[1751833086519,4.65590144,151.93,151.91,0.06]
[1751833088310,8.13889648,151.96,151.91,0.06]
[1751833088311,4.65590144,151.92,151.91,0.06]
[1751833090624,145.99999999,151.94,151.91,0.06]
[1751833090625,4.65590144,151.93,151.91,0.06]
[1751833090826,145.99999999,151.94,151.91,0.06]
[1751833091027,150.65590143,151.94,151.91,0.06]
[1751833093320,145.99999999,151.94,151.91,0.06]
[1751833093621,150.65590143,151.94,151.91,0.06]
[1751833096331,12.0607744,151.93,151.91,0.06]
[1751833096535,158.06123951,151.92,151.91,0.06]
[1751833098531,164.6436513,151.92,151.91,0.06]
[1751833100024,18.64365131,151.92,151.91,0.06]
[1751833100351,17.64365131,151.92,151.91,0.06]
[1751833102017,7.40533808,151.92,151.91,0.06]
[1751833102217,17.64647239,151.96,151.91,4.71590144]
[1751833102218,6.87,151.96,151.91,4.71590144]
[1751833102526,14.25988231,151.96,151.93,4.65590144]
[1751833102937,6.87,151.96,151.93,4.65590144]
[1751833103329,0.03,151.96,151.93,4.65590144]
[1751833103525,0.03,151.96,151.94,4.65590144]
[1751833104144,0.03,151.96,151.93,4.65590144]
[1751833104925,0.03,151.96,151.93,7.28383412]
[1751833105533,0.03,151.96,151.93,13.86543125]
[1751833108972,146.0,151.95,151.93,13.86543125]
[1751833109270,0.03,151.96,151.94,7.28383412]
[1751833109478,0.03,151.96,151.95,7.28383412]
[1751833110053,0.03,151.96,151.95,25.93348298]
[1751833111177,0.03,151.96,151.95,32.51459518]
[1751833112187,1e-08,151.96,151.95,32.51459518]
[1751833112343,1e-08,151.96,151.95,33.1727064]
[1751833116379,1e-08,151.96,151.95,25.88887228]
[1751833116690,1e-08,151.96,151.95,13.86494632]
[1751833117491,1e-08,151.96,151.95,6.5811122]
[1751833117785,7.28383413,151.96,151.95,6.5811122]
[1751833118551,7.28383413,151.96,151.92,25.93348298]
[1751833118777,7.28383413,151.96,151.93,6.58197854]
[1751833119691,7.28383412,151.95,151.93,6.58197854]
[1751833120058,7.28383412,151.94,151.92,6.58229297]
[1751833120696,7.28383412,151.94,151.91,0.06]
[1751833120697,7.28383412,151.94,151.91,6.6428451]
[1751833121052,1e-08,151.96,151.92,7.28383412]
[1751833121257,1e-08,151.96,151.93,7.28383412]
[1751833121729,1e-08,151.96,151.94,7.28383412]
[1751833121895,1e-08,151.96,151.95,7.28383412]
[1751833122723,1e-08,151.96,151.95,13.86494632]
[1751833126049,1e-08,151.96,151.95,32.51459518]
[1751833131629,1e-08,151.96,151.95,25.23076106]
[1751833131825,1e-08,151.96,151.95,32.51459518]
[1751833134750,1e-08,152.0,151.99,18.64964886]
[1751833135046,1e-08,152.0,151.99,25.93348298]
[1751833135346,1e-08,152.0,151.99,32.5128632]
[1751833136912,1e-08,152.0,151.99,13.86321434]
[1751833138928,1e-08,152.0,151.99,6.57938022]
[1751833142125,1e-08,152.0,151.99,13.86321434]
[1751833144933,1e-08,152.0,151.98,7.28383412]
[1751833145640,1e-08,152.0,151.99,7.28383412]
[1751833146150,1e-08,152.0,151.99,13.86321434]
[1751833149531,1e-08,152.0,151.99,6.57938022]
[1751833149849,1e-08,152.0,151.99,13.86321434]
[1751833152551,1e-08,152.0,151.99,6.57938022]
[1751833152859,1e-08,152.0,151.98,6.57964179]
[1751833153225,7.28383412,151.99,151.95,6.5811122]
[1751833153431,7.28383412,151.97,151.95,6.5811122]
[1751833153731,7.28383412,151.97,151.94,6.6413908]
[1751833154049,7.28383412,151.96,151.94,6.64149436]
[1751833154743,7.28383412,151.97,151.94,6.64149436]
[1751833154945,6.5412,151.98,151.94,6.64149436]
[1751833154946,7.28383412,151.96,151.94,0.06]
[1751833156746,6.5412,151.98,151.94,0.06]
[1751833156945,7.28383412,151.97,151.94,0.06]
[1751833158542,7.28383412,151.95,151.94,0.06]
[1751833160061,154.79933412,151.97,151.94,0.06]
[1751833163943,7.28383412,151.96,151.94,0.06]
[1751833169272,7.28383412,151.95,151.94,0.06]
[1751833169566,32.58087332,151.96,151.94,0.06]
[1751833169746,7.28383412,151.95,151.94,0.06]
[1751833172970,26.0,151.96,151.94,0.06]
[1751833173158,7.28383412,151.95,151.94,0.06]
[1751833173349,146.0,151.97,151.94,0.06]
[1751833173554,7.28383412,151.96,151.94,0.06]
[1751833186485,146.0,151.97,151.94,0.06]
[1751833186704,7.28383412,151.96,151.94,0.06]
[1751833188265,7.28383412,151.95,151.94,0.06]
[1751833190676,13.86494632,151.95,151.94,0.06]
[1751833194301,58.51459518,151.95,151.94,0.06]
[1751833195107,65.8981117,151.95,151.94,0.06]
[1751833205013,63.27906741,151.95,151.94,0.06]
[1751833207111,37.27906741,151.95,151.94,0.06]
[1751833207321,70.61906741,151.95,151.94,0.06]
[1751833207492,75.79834115,151.95,151.94,0.06]
[1751833207686,44.64964886,151.92,151.91,0.06]
[1751833207891,56.69795521,151.92,151.91,0.06]
[1751833209003,63.280367,151.92,151.91,0.06]
[1751833210809,73.20150443,151.92,151.91,0.06]
[1751833211891,65.81798791,151.92,151.91,0.06]
[1751833214417,26.0,151.92,151.91,0.06]
[1751833214604,33.29296363,151.92,151.91,0.06]